fUSD/lending_fUSD_20251221
["ID","MTS","AMOUNT","RATE_DAILY","PERIOD"]
[399413405,1766334642183,-518.86476464,0.00015973,2]
[399413406,1766334642193,-162.2682575,0.00015973,2]
[399413407,1766334642206,-500.0,0.00015973,2]
[399413408,1766334642215,-500.0,0.00015973,2]
[399413409,1766334642224,-500.0,0.00015973,2]
[399413410,1766334642234,-334.60508476,0.00015973,2]
[399413411,1766334642243,-500.0,0.00015973,2]
[399413412,1766334642254,-500.0,0.00015973,2]
[399413413,1766334642264,-500.0,0.00015973,2]
[399413414,1766334642274,-500.0,0.00015973,2]
[399413415,1766334642283,-500.4654119,0.00015973,2]
[399413416,1766334642292,-500.0,0.00015973,2]
[399413417,1766334642303,-500.0,0.00015973,2]
[399413418,1766334642312,-500.0,0.00015973,2]
[399413419,1766334642322,-330.74959628,0.00015973,2]
[399413420,1766334642331,-452.23233136,0.00015973,2]
[399413421,1766334642341,-500.0,0.00015973,2]
[399413422,1766334642350,-500.0,0.00015973,2]
[399413423,1766334642360,-160.18740865,0.00015973,2]
[399413424,1766334642369,-160.18648371,0.00015973,2]
[399413425,1766334642378,-160.18741035,0.00015973,2]
[399413426,1766334642388,-160.18740865,0.00015973,2]
[399413427,1766334642397,-160.18648397,0.00015973,2]
[399413428,1766334642406,-160.18818998,0.00015973,2]
[399413429,1766334642415,-160.18740865,0.00015973,2]
[399413430,1766334642424,-160.18477965,0.00015973,2]
[399413431,1766334642434,-162.38378184,0.00015973,2]
[399413432,1766334642443,-500.56420784,0.00015973,2]
[399413433,1766334642452,-269.64224637,0.00015973,2]
[399413434,1766334642462,-500.0,0.00015973,2]
[399413435,1766334642471,-500.77244015,0.00015973,2]
[399413436,1766334642480,-160.176,0.00015973,2]
[399413437,1766334642489,-500.0,0.00015973,2]
[399413438,1766334642498,-160.18546537,0.00015973,2]
[399413439,1766334642507,-500.0,0.00015973,2]
[399413440,1766334642517,-555.97636192,0.00015973,2]
[399413441,1766334642526,-500.51801303,0.00015973,2]
[399413442,1766334642536,-500.30670484,0.00015973,2]
[399413443,1766334642545,-500.0,0.00015973,2]
[399413444,1766334642554,-500.0,0.00015973,2]
[399413445,1766334642563,-500.0,0.00015973,2]
[399413446,1766334642572,-500.0,0.00015973,2]
[399413447,1766334642582,-500.0,0.00015973,2]
[399413448,1766334642591,-160.18819168,0.00015973,2]
[399413449,1766334642606,-160.18740865,0.00015973,2]
[399413450,1766334642620,-177.38138354,0.00015973,2]
[399413451,1766334642629,-160.18740865,0.00015973,2]
[399413452,1766334642638,-160.18740865,0.00015973,2]
[399413453,1766334642647,-500.67170266,0.00015973,2]
[399413454,1766334642657,-160.18740865,0.00015973,2]
[399413455,1766334642667,-500.0,0.00015973,2]
[399413456,1766334642678,-150.17482874,0.00015973,2]
[399413457,1766334642687,-500.0,0.00015973,2]
[399413458,1766334642697,-500.0,0.00015973,2]
[399413459,1766334642706,-500.0,0.00015973,2]
[399413460,1766334642716,-500.0,0.00015973,2]
[399413461,1766334642725,-500.0,0.00015973,2]
[399413462,1766334642735,-500.0,0.00015973,2]
[399413463,1766334642744,-168.59717172,0.00015973,2]
[399413464,1766334642754,-500.0,0.00015973,2]
[399413465,1766334642764,-500.0,0.00015973,2]
[399413466,1766334642774,-500.0,0.00015973,2]
[399413467,1766334642783,-530.05316157,0.00015973,2]
[399413468,1766334642793,-500.0,0.00015973,2]
[399413469,1766334642803,-500.0,0.00015973,2]
[399413470,1766334642812,-500.0,0.00015973,2]
[399413471,1766334642821,-500.0,0.00015973,2]
[399413472,1766334642831,-500.0,0.00015973,2]
[399413473,1766334642840,-500.0,0.00015973,2]
[399413475,1766334642851,-947.41020259,0.0001599,2]
[399413476,1766334642860,-151.0,0.00015997,2]
[399413477,1766334642870,-1635708.2356225,0.00016,4]
[399413478,1766334642921,-1907.28828516,0.00016,4]
[399413479,1766334642932,-51025.17090407,0.00016,4]
[399413491,1766334643474,-1.7e-07,0.00016,4]
[399413492,1766334643486,-481940.60190629,0.00016,4]
[399413494,1766334643495,-3000.0,0.00016012,2]
[399413496,1766334643505,-322.49283525,0.00016012,2]
[399413497,1766334643514,-3000.0,0.00016012,2]
[399413498,1766334643523,-591.56176749,0.00016048,2]
[399413499,1766334643534,-6339.51832082,0.000162,5]
[399413500,1766334643547,-21309.20900496,0.00016238,2]
[399413501,1766334643557,-2153.16190316,0.00016243,2]
[399413502,1766334643568,-22989.20762034,0.00016298,2]
[399413503,1766334643577,-469.45087661,0.00016338,2]
[399413504,1766334643587,-1584.55557542,0.00016406,2]
[399413505,1766334643596,-1088.23813473,0.00016406,2]
[399413506,1766334643606,-585.14,0.00016437,2]
[399413507,1766334643616,-500.0,0.00016437,2]
[399413508,1766334643625,-500.0,0.00016437,2]
[399413509,1766334643635,-500.0,0.00016437,2]
[399413510,1766334643644,-500.0,0.00016437,2]
[399413511,1766334643654,-500.0,0.00016437,2]
[399413512,1766334643663,-500.0,0.00016437,2]
[399413513,1766334643673,-500.0,0.00016437,2]
[399413514,1766334643682,-500.0,0.00016437,2]
[399413515,1766334643692,-500.0,0.00016437,2]
[399413516,1766334643702,-500.0,0.00016437,2]
[399413517,1766334643711,-567.20870026,0.00016437,2]
[399413518,1766334643721,-527.56,0.00016437,2]
[399413519,1766334643730,-500.0,0.00016437,2]
[399413520,1766334643739,-500.0,0.00016437,2]
[399413521,1766334643752,-500.0,0.00016437,2]
[399413522,1766334643762,-500.0,0.00016437,2]
[399413523,1766334643772,-500.0,0.00016438,2]
[399413524,1766334643782,-500.0,0.00016438,2]
[399413525,1766334643791,-500.0,0.00016438,2]
[399413526,1766334643801,-500.0,0.00016438,2]
[399413527,1766334643810,-500.0,0.00016438,2]
[399413528,1766334643820,-500.0,0.00016438,2]
[399413529,1766334643830,-500.0,0.00016438,2]
[399413530,1766334643839,-14642.21,0.00016438,2]
[399413531,1766334643849,-800.0,0.00016438,2]
[399413532,1766334643859,-305.36182618,0.0001644,2]
[399413533,1766334643868,-469.45087658,0.0001645,2]
[399413534,1766334643878,-151.0,0.00016518,2]
[399413535,1766334643888,-500.0,0.0001652,2]
[399413536,1766334643898,-501.99535785,0.00016521,2]
[399413537,1766334643908,-1000.0,0.00016521,2]
[399413538,1766334643918,-811.84683956,0.00016521,2]
[399413539,1766334643928,-748.8938967,0.00016521,2]
[399413540,1766334643942,-1002.52786195,0.00016521,2]
[399413541,1766334643951,-1000.0,0.00016521,2]
[399413542,1766334643961,-1000.0,0.00016521,2]
[399413543,1766334643971,-1000.0,0.00016521,2]
[399413544,1766334643980,-1000.0,0.00016521,2]
[399413545,1766334643995,-1000.0,0.00016521,2]
[399413546,1766334644005,-1000.0,0.00016521,2]
[399413547,1766334644014,-1000.0,0.00016521,2]
[399413548,1766334644024,-1000.0,0.00016521,2]
[399413549,1766334644034,-1000.0,0.00016521,2]
[399413550,1766334644044,-810.71387342,0.00016521,2]
[399413551,1766334644054,-979.05040621,0.00016521,2]
[399413552,1766334644065,-511.36256137,0.00016521,2]
[399413553,1766334644074,-1000.0,0.00016521,2]
[399413554,1766334644083,-1000.0,0.00016521,2]
[399413555,1766334644093,-1000.0,0.00016521,2]
[399413556,1766334644103,-486.87494443,0.00016521,2]
[399413557,1766334644113,-1000.0,0.00016521,2]
[399413558,1766334644123,-1000.0,0.00016521,2]
[399413559,1766334644133,-1000.0,0.00016521,2]
[399413560,1766334644146,-1000.0,0.00016521,2]
[399413561,1766334644155,-1000.0,0.00016521,2]
[399413562,1766334644166,-1000.0,0.00016521,2]
[399413563,1766334644176,-378.15038662,0.00016521,2]
[399413564,1766334644280,-1000.0,0.00016521,2]
[399413565,1766334644292,-1000.0,0.00016521,2]
[399413566,1766334644302,-1000.0,0.00016521,2]
[399413567,1766334644315,-669.31135743,0.00016521,2]
[399413568,1766334644326,-1000.0,0.00016521,2]
[399413569,1766334644337,-1000.0,0.00016521,2]
[399413570,1766334644347,-1000.0,0.00016521,2]
[399413571,1766334644358,-1000.0,0.00016521,2]
[399413572,1766334644367,-1000.0,0.00016521,2]
[399413573,1766334644376,-1001.73216536,0.00016521,2]
[399413574,1766334644385,-1000.0,0.00016521,2]
[399413575,1766334644394,-1000.0,0.00016521,2]
[399413576,1766334644403,-501.48988543,0.00016521,2]
[399413577,1766334644413,-3500.0,0.0001656,2]
[399413578,1766334644423,-2637.74522445,0.0001656,2]
[399413579,1766334644433,-469.45087658,0.00016563,2]
[399413580,1766334644442,-469.45087658,0.00016675,2]
[399413581,1766334644451,-469.45087658,0.00016788,2]
[399413582,1766334644460,-21309.20900496,0.000169,2]
[399413583,1766334644471,-1514.00790089,0.000169,2]
[399413584,1766334644481,-591.56176749,0.000169,2]
[399413585,1766334644490,-469.45087658,0.000169,2]
[399413586,1766334644499,-1584.55557542,0.000169,2]
[399413587,1766334644508,-305.36182618,0.00016967,2]
[399413588,1766334644517,-22989.20762034,0.00016968,2]
[399413589,1766334644526,-150.0,0.00016973,2]
[399413590,1766334644535,-527.56,0.00016986,2]
[399413591,1766334644544,-500.0,0.00016986,2]
[399413592,1766334644555,-162738.22,0.00016986,2]
[399413593,1766334644566,-947.41020259,0.0001699,2]
[399413594,1766334644576,-585.14,0.00016991,2]
[399413595,1766334644585,-585.14,0.00016991,2]
[399413596,1766334644595,-585.14,0.00016991,2]
[399413597,1766334644606,-585.14,0.00016991,2]
[399413598,1766334644617,-585.14,0.00016991,2]
[399413599,1766334644626,-151.0,0.00016997,2]
[399413600,1766334644636,-585.14,0.00016999,2]
[399413601,1766334644645,-585.14,0.00016999,2]
[399413602,1766334644654,-585.14,0.00016999,2]
[399413603,1766334644664,-585.14,0.00016999,2]
[399413604,1766334644674,-585.14,0.00016999,2]
[399413605,1766334644683,-585.14,0.00016999,2]
[399413606,1766334644692,-585.14,0.00016999,2]
[399413607,1766334644701,-585.14,0.00016999,2]
[399413608,1766334644711,-585.14,0.00016999,2]
[399413609,1766334644720,-585.14,0.00016999,2]
[399413610,1766334644729,-585.14,0.00016999,2]
[399413611,1766334644738,-585.24,0.00016999,2]
[399413612,1766334644748,-300.0,0.00016999,2]
[399413613,1766334644757,-300.0,0.00016999,2]
[399413614,1766334644767,-666.0,0.00016999,2]
[399413615,1766334644776,-2014.45964951,0.00016999,2]
[399413616,1766334644786,-284.52076263,0.00016999,2]
[399413617,1766334644795,-6173377.57619909,0.00017,2]
[399413618,1766334645454,-0.49104117,0.00017,2]
[399413619,1766334645469,-7869.11312225,0.00017,2]
[399413620,1766334645614,-235.9438,0.00010939,2]
[399413621,1766334645624,-1088.23813473,0.000169,2]
[399413622,1766334645633,-14072.81796527,0.00017,2]
[399413623,1766334645662,-500.0,0.00017,2]
[399413624,1766334645676,-10611.36946134,0.00017,2]
[399413627,1766334646120,-1200671.71166579,0.00017,2]
[399413633,1766334658722,170.0,0.00034521,30]
[399413635,1766334662031,-479.58100001,0.00010837,2]
[399413640,1766334692036,-20.41899999,0.00010837,2]
[399413641,1766334692072,-152.87596359,0.00010839,2]
[399413642,1766334693491,-386.18963,0.00010839,2]
[399413643,1766334695536,-216.19240501,0.00010839,2]
[399413644,1766334697051,363.69,0.00035467,42]
[399413646,1766334698680,-189.88430731,0.00010622,2]
[399413649,1766334700855,922.0,0.0003561,30]
[399413650,1766334701376,-173.80469269,0.00010622,2]
[399413651,1766334701408,-130.36736586,0.00010839,2]
[399413652,1766334702164,1274.21856429,0.0003561,30]
[399413653,1766334702983,-300.2647552,0.00010839,2]
[399413654,1766334704385,222.0,0.0003561,30]
[399413655,1766334705027,-176.04083718,0.00010839,2]
[399413656,1766334708119,-317.42602732,0.00010838,2]
[399413657,1766334711790,-182.57397268,0.00010838,2]
[399413658,1766334711822,-62.55231466,0.00010838,2]
[399413659,1766334716199,-213.41976482,0.00010838,2]
[399413660,1766334718345,-224.02792052,0.00010838,2]
[399413661,1766334718376,-14.52493737,0.00010838,2]
[399413662,1766334721432,-485.47506263,0.00010838,2]
[399413663,1766334721462,-14.52493737,0.00010838,2]
[399413664,1766334723401,-199.57758253,0.00010838,2]
[399413665,1766334724906,-250.54999566,0.00010838,2]
[399413666,1766334725760,500.0,0.00035616,30]
[399413667,1766334725861,250.0,0.00035616,30]
[399413668,1766334726077,160.0,0.00035616,30]
[399413669,1766334726191,500.0,0.00035616,30]
[399413670,1766334726298,414.0,0.00035616,30]
[399413671,1766334726406,500.0,0.00035616,30]
[399413672,1766334726529,250.0,0.00035616,30]
[399413673,1766334726711,160.0,0.00035616,30]
[399413674,1766334726874,151.0,0.00035616,30]
[399413675,1766334726918,-18.81100047,0.00010838,2]
[399413676,1766334726942,-163.499192,0.00010838,2]
[399413677,1766334727065,151.0,0.00035616,30]
[399413678,1766334727172,429.318,0.00035616,30]
[399413679,1766334727291,500.0,0.00035616,30]
[399413680,1766334727407,250.0,0.00035616,30]
[399413681,1766334727572,518.5,0.00035616,30]
[399413682,1766334727682,160.0,0.00035616,30]
[399413683,1766334727798,156.587,0.00035616,30]
[399413684,1766334727919,151.0,0.00035616,30]
[399413685,1766334728040,445.202766,0.00035616,30]
[399413686,1766334728157,500.0,0.00035616,30]
[399413687,1766334728282,250.0,0.00035616,30]
[399413688,1766334728398,450.83096488,0.00035616,30]
[399413689,1766334728531,160.0,0.00035616,30]
[399413690,1766334728690,162.380719,0.00035616,30]
[399413691,1766334728794,151.0,0.00035616,30]
[399413692,1766334728902,461.67526834,0.00035616,30]
[399413693,1766334729018,500.0,0.00035616,30]
[399413694,1766334729143,250.0,0.00035616,30]
[399413695,1766334729252,250.0,0.00035616,30]
[399413696,1766334729383,160.0,0.00035616,30]
[399413697,1766334729492,168.3888056,0.00035616,30]
[399413698,1766334729593,151.0,0.00035616,30]
[399413699,1766334729706,585.15832056,0.00035616,30]
[399413700,1766334730148,500.0,0.00035616,30]
[399413701,1766334730275,250.0,0.00035616,30]
[399413702,1766334730385,250.0,0.00035616,30]
[399413703,1766334730497,250.0,0.00035616,30]
[399413704,1766334730598,250.0,0.00035616,30]
[399413705,1766334730701,500.0,0.00035616,30]
[399413706,1766334730811,174.61919141,0.00035616,30]
[399413707,1766334730921,151.0,0.00035616,30]
[399413708,1766334731025,500.0,0.00035616,30]
[399413709,1766334731384,250.0,0.00035616,30]
[399413710,1766334731504,250.0,0.00035616,30]
[399413711,1766334731604,250.0,0.00035616,30]
[399413712,1766334731710,500.0,0.00035616,30]
[399413713,1766334731837,181.08010149,0.00035616,30]
[399413714,1766334731946,151.0,0.00035616,30]
[399413715,1766334732063,500.0,0.00035616,30]
[399413716,1766334732175,250.0,0.00035616,30]
[399413717,1766334732204,-377.99385595,0.00010838,2]
[399413718,1766334732310,250.0,0.00035616,30]
[399413719,1766334732424,250.0,0.00035616,30]
[399413720,1766334732532,500.0,0.00035616,30]
[399413721,1766334732631,187.78006525,0.00035616,30]
[399413722,1766334732741,151.0,0.00035616,30]
[399413723,1766334732862,500.0,0.00035616,30]
[399413724,1766334732965,250.0,0.00035616,30]
[399413725,1766334733191,250.0,0.00035616,30]
[399413726,1766334733293,250.0,0.00035616,30]
[399413727,1766334733421,194.72792766,0.00035616,30]
[399413728,1766334733524,500.0,0.00035616,30]
[399413729,1766334733628,151.0,0.00035616,30]
[399413730,1766334733758,500.0,0.00035616,30]
[399413731,1766334733864,250.0,0.00035616,30]
[399413732,1766334733980,250.0,0.00035616,30]
[399413733,1766334734090,250.0,0.00035616,30]
[399413734,1766334734204,201.93286099,0.00035616,30]
[399413735,1766334734331,500.0,0.00035616,30]
[399413736,1766334734473,250.0,0.00035616,30]
[399413737,1766334734575,558.4945972,0.00035616,30]
[399413738,1766334734763,250.0,0.00035616,30]
[399413739,1766334734871,151.0,0.00035616,30]
[399413740,1766334734993,500.0,0.00035616,30]
[399413741,1766334735119,209.40437684,0.00035616,30]
[399413742,1766334735228,250.0,0.00035616,30]
[399413743,1766334735363,151.0,0.00035616,30]
[399413744,1766334735470,250.0,0.00035616,30]
[399413745,1766334735584,151.0,0.00035616,30]
[399413746,1766334735702,500.0,0.00035616,30]
[399413747,1766334735828,217.15233878,0.00035616,30]
[399413748,1766334735939,250.0,0.00035616,30]
[399413749,1766334736057,151.0,0.00035616,30]
[399413750,1766334736173,250.0,0.00035616,30]
[399413751,1766334736282,666.0,0.00035609,30]
[399413752,1766334736396,151.0,0.00035616,30]
[399413753,1766334736527,225.18697532,0.00035616,30]
[399413754,1766334736646,151.0,0.00035616,30]
[399413755,1766334736759,500.0,0.00035616,30]
[399413756,1766334736891,250.0,0.00035616,30]
[399413757,1766334736999,151.0,0.00035616,30]
[399413758,1766334737032,-379.64592627,0.00010838,2]
[399413759,1766334737175,250.0,0.00035616,30]
[399413760,1766334737289,233.51889341,0.00035616,30]
[399413761,1766334737447,151.0,0.00035616,30]
[399413762,1766334737560,500.0,0.00035616,30]
[399413763,1766334737675,250.0,0.00035616,30]
[399413764,1766334737783,151.0,0.00035616,30]
[399413765,1766334737897,250.0,0.00035616,30]
[399413766,1766334738040,242.15909246,0.00035616,30]
[399413767,1766334738174,151.0,0.00035616,30]
[399413768,1766334738290,500.0,0.00035616,30]
[399413769,1766334738402,151.0,0.00035616,30]
[399413770,1766334738512,157.67856935,0.00035616,30]
[399413771,1766334738636,250.0,0.00035616,30]
[399413772,1766334738746,251.11897888,0.00035616,30]
[399413773,1766334738867,151.0,0.00035616,30]
[399413774,1766334738978,500.0,0.00035616,30]
[399413775,1766334739095,151.0,0.00035616,30]
[399413776,1766334739224,250.0,0.00035616,30]
[399413777,1766334739329,260.4103811,0.00035616,30]
[399413778,1766334739454,151.0,0.00035616,30]
[399413779,1766334739559,500.0,0.00035616,30]
[399413780,1766334739676,151.0,0.00035616,30]
[399413781,1766334739806,250.0,0.00035616,30]
[399413782,1766334739922,270.0455652,0.00035616,30]
[399413783,1766334740045,520.0,0.00035616,30]
[399413784,1766334740219,500.0,0.00035616,30]
[399413785,1766334740416,151.0,0.00035616,30]
[399413786,1766334740530,280.03725112,0.00035616,30]
[399413787,1766334740646,539.24,0.00035616,30]
[399413788,1766334740754,500.0,0.00035616,30]
[399413789,1766334740862,151.0,0.00035616,30]
[399413790,1766334740974,290.39862941,0.00035616,30]
[399413791,1766334741089,161.93577536,0.00035616,30]
[399413792,1766334741145,-332.33498405,0.00010838,2]
[399413793,1766334741259,151.0,0.00035616,30]
[399413794,1766334741835,250.0,0.00035616,30]
[399413795,1766334741903,301.1433787,0.00035616,30]
[399413796,1766334741982,151.0,0.00035616,30]
[399413797,1766334742120,250.0,0.00035616,30]
[399413798,1766334742243,250.0,0.00035616,30]
[399413799,1766334742368,250.0,0.00035616,30]
[399413800,1766334742455,151.0,0.00035616,30]
[399413801,1766334742520,250.0,0.00035616,30]
[399413802,1766334742658,151.0,0.00035616,30]
[399413803,1766334743106,620.0,0.00035616,30]
[399413804,1766334743161,151.0,0.00035616,30]
[399413805,1766334743224,-204.86205764,0.00010838,2]
[399413806,1766334743547,250.0,0.00035616,30]
[399413807,1766334743728,151.0,0.00035616,30]
[399413808,1766334744155,250.0,0.00035616,30]
[399413809,1766334744772,250.0,0.00035616,30]
[399413810,1766334745408,250.0,0.00035616,30]
[399413811,1766334745586,-284.76491919,0.00010838,2]
[399413812,1766334746026,250.0,0.00035616,30]
[399413813,1766334746175,250.0,0.00035616,30]
[399413814,1766334746406,151.0,0.00035616,30]
[399413815,1766334746645,250.0,0.00035616,30]
[399413816,1766334747032,-393.57619135,0.00010838,2]
[399413817,1766334747272,250.0,0.00035616,30]
[399413818,1766334747484,151.0,0.00035616,30]
[399413819,1766334747888,250.0,0.00035616,30]
[399413820,1766334748129,151.0,0.00035616,30]
[399413821,1766334748534,250.0,0.00035616,30]
[399413822,1766334748752,151.0,0.00035616,30]
[399413823,1766334748905,548.92065365,0.00035616,30]
[399413824,1766334749158,250.0,0.00035616,30]
[399413825,1766334749382,151.0,0.00035616,30]
[399413826,1766334749874,-8.39838277,0.00010838,2]
[399413827,1766334749903,-174.81199944,0.00010839,2]
[399413828,1766334749979,500.0,0.00035616,30]
[399413829,1766334750612,518.5,0.00035616,30]
[399413830,1766334752328,-297.40961688,0.00010839,2]
[399413831,1766334753849,-208.48179988,0.00010839,2]
[399413832,1766334755357,-192.56133349,0.00010839,2]
[399413833,1766334757701,207.4,0.00035616,30]
[399413834,1766334760126,-336.32241046,0.00010839,2]
[399413835,1766334761051,498.0,0.0003561,30]
[399413836,1766334761842,726.0,0.0003561,30]
[399413837,1766334764035,252.0,0.0003561,30]
[399413839,1766334764844,382.0,0.0003561,30]
[399413840,1766334765471,-221.90119514,0.00010839,2]
[399413841,1766334768010,-227.11927634,0.00010839,2]
[399413842,1766334768366,220.0,0.00035616,30]
[399413843,1766334768968,220.0,0.00035616,30]
[399413844,1766334769572,220.0,0.00035616,30]
[399413845,1766334770206,220.65667203,0.00035616,30]
[399413846,1766334770866,250.0,0.00035616,30]
[399413847,1766334771826,-173.23954065,0.00010838,2]
[399413848,1766334771986,250.0,0.00035616,30]
[399413849,1766334773187,250.0,0.00035616,30]
[399413850,1766334773705,250.0,0.00035616,30]
[399413851,1766334774330,250.0,0.00035616,30]
[399413852,1766334774955,-185.34531192,0.00010838,2]
[399413853,1766334776441,-49.75620067,0.00010838,2]
[399413854,1766334776463,-208.48179988,0.00010838,2]
[399413855,1766334776489,-134.95724267,0.00010838,2]
[399413856,1766334778769,-232.75342797,0.00010839,2]
[399413857,1766334781543,-162.8662351,0.00010838,2]
[399413859,1766334781564,-35.53064907,0.00010838,2]
[399413862,1766334785663,-335.56050647,0.00010838,2]
[399413863,1766334785686,-3.93318108,0.00010838,2]
[399413864,1766334794535,-289.45372834,0.00010838,2]
[399413865,1766334801177,-206.61309058,0.00010838,2]
[399413866,1766334801200,-30.06865962,0.00010838,2]
[399413867,1766334805915,-190.94669523,0.00010838,2]
[399413868,1766334808572,-157.26373341,0.00010838,2]
[399413870,1766334813401,-241.94652262,0.00010838,2]
[399413871,1766334813427,-16.68255012,0.00010838,2]
[399413872,1766334815313,-205.78673127,0.00010838,2]
[399413873,1766334817320,-277.53071861,0.00010838,2]
[399413874,1766334817342,-22.46928139,0.00010838,2]
[399413875,1766334818801,-244.21326873,0.00010838,2]
[399413876,1766334822615,-216.65457097,0.00010838,2]
[399413877,1766334824964,542.0,0.0003561,30]
[399413878,1766334825802,-9.86974923,0.00010838,2]
[399413879,1766334825827,-176.67626731,0.00010838,2]
[399413880,1766334830359,-243.32495825,0.00010838,2]
[399413881,1766334832521,-79.99877444,0.00010838,2]
[399413882,1766334832543,-184.01379301,0.00010838,2]
[399413883,1766334835712,199.0,0.00034246,30]
[399413884,1766334837633,-100.22519078,0.00010838,2]
[399413885,1766334837660,-199.77480922,0.00010838,2]
[399413886,1766334840327,-150.0,0.00010838,2]
[399413887,1766334840349,-228.57726909,0.00010838,2]
[399413888,1766334841938,-185.98743255,0.00010838,2]
[399413889,1766334845261,-298.77436727,0.00010838,2]
[399413890,1766334847887,-159.41244379,0.00010838,2]
[399413891,1766334849954,-327.2484873,0.00010838,2]
[399413892,1766334849981,-2.73929573,0.00010839,2]
[399413893,1766334853602,-297.43605432,0.00010839,2]
[399413894,1766334855763,-251.1868518,0.00010839,2]
[399413895,1766334859283,-200.09968494,0.00010839,2]
[399413896,1766334861285,-300.0,0.00010839,2]
[399413897,1766334862792,-182.34796988,0.00010839,2]
[399413901,1766334866115,-245.35635345,0.00010839,2]
[399413902,1766334870497,-300.0,0.00010839,2]
[399413903,1766334873702,-257.50905507,0.00010839,2]
[399413904,1766334877676,-155.51146646,0.00010839,2]
[399413905,1766334879735,-239.704737,0.00010839,2]
[399413907,1766334883293,649.20452458,0.00012465,7]
[399413908,1766334884366,176.0,0.0003561,30]
[399413909,1766334885065,-302.32144684,0.00010839,2]
[399413910,1766334886598,-196.42208196,0.00010839,2]
[399413911,1766334888034,-414.5965565,0.00010839,2]
[399413912,1766334889659,-326.56624515,0.00010839,2]
[399413913,1766334892965,-411.14805633,0.00010839,2]
[399413914,1766334896226,-184.80488258,0.00010784,2]
[399413915,1766334897640,-333.54423251,0.00010784,2]
[399413916,1766334899134,-221.89940778,0.00010784,2]
[399413917,1766334902232,-151.45860541,0.00010784,2]
[399413918,1766334904021,-232.351131,0.00010784,2]
[399413919,1766334906234,-28.98656272,0.00010784,2]
[399413920,1766334906257,-223.71293216,0.00010838,2]
[399413921,1766334910096,-76.28706784,0.00010838,2]
[399413922,1766334910122,-235.05501781,0.00010838,2]
[399413923,1766334912303,-64.94498219,0.00010838,2]
[399413924,1766334912328,-88.28198574,0.00010838,2]
[399413925,1766334914979,-262.43510493,0.00010838,2]
[399413926,1766334917953,-202.20029535,0.00010838,2]
[399413927,1766334919874,-387.10850435,0.00010838,2]
[399413928,1766334921501,-259.97410963,0.00010838,2]
[399413929,1766334921532,-40.02589037,0.00010839,2]
[399413930,1766334925185,-280.31855946,0.00010839,2]
[399413931,1766334927254,-180.71844043,0.00010839,2]
[399413933,1766334930533,-342.9528579,0.00010839,2]
[399413934,1766334935616,-253.74823937,0.00010839,2]
[399413935,1766334937793,-203.27257388,0.00010839,2]
[399413936,1766334940398,837.0,0.0003561,30]
[399413937,1766334940437,-219.94280895,0.00010839,2]
[399413938,1766334945297,-307.091974,0.00010839,2]
[399413939,1766334946801,-525.3211824,0.00010839,2]
[399413943,1766334949266,-271.91861373,0.00010832,2]
[399413944,1766334951823,-244.57579678,0.00010832,2]
[399413945,1766334953339,-179.20601753,0.00010832,2]
[399413946,1766334956878,-173.5434207,0.00010832,2]